Cogmind - Beta 13 @@@ ROGUE MODE // 2024.06.05 @ 17:52:04 Player: Johge Result: Destroyed by G-47 Trooper with Particle Gun Performance ------------- Evolutions (2) 1000 Regions Visited (5) 1000 Robots Destroyed (83) 415 Value Destroyed (2284) 2284 Prototype IDs (5) 100 Alien Tech Used (0) 0 Bonus (26) 26 TOTAL SCORE: 4825 Bonus ------- High Alert Combat Kills 50 Friendly Fire -24 Cogmind --------- Core Integrity 0/550 Matter 300/300 Energy 100/100 System Corruption 0% Temperature Cool (9) Movement Core (700) Ox13 Location -8/Storage Parts ------- > --- POWER (1) -------- (None) > --- PROPULSION (4) --- (None) > --- UTILITY (4) ------ High-capacity Storage Unit Visual Processing Unit Advanced Targeting Computer > --- WEAPON (2) ------- (None) > --- INVENTORY (20) --- Improved Ion Engine Light Nuclear Core High-capacity Battery (250) Large Matter Pod (150) Improved Signal Interpreter Light Armor Plating Hacking Suite Field Laser Heavy Assault Rifle Grenade Launcher Rocket Launcher Peak State ------------ > --- POWER ------------ Heavy Ion Engine > --- PROPULSION ------- Light Treads Improved Treads Advanced Treads Advanced Treads > --- UTILITY ---------- Heat Sink High-capacity Storage Unit Visual Processing Unit Hardened Light Armor Plating > --- WEAPON ----------- Field Laser Flak Cannon > --- INVENTORY -------- Improved Ion Engine Light Treads Light Treads Light Treads High-capacity Battery Large Matter Pod Hacking Suite Small Laser Particle Gun Field Laser Particle Cannon Grenade Launcher Rocket Launcher [Rating: 26] Favorites ----------- Power Heavy Ion Engine Engine Heavy Ion Engine Propulsion Light Treads Treads Light Treads Leg Carbon-fiber Leg Utility Visual Processing Unit Device Heat Sink Storage High-capacity Storage Unit Processor Visual Processing Unit Protection Hardened Light Armor Plating Weapon Assault Rifle Energy Gun Field Laser Energy Cannon Particle Cannon Ballistic Gun Assault Rifle Ballistic Cannon Light Cannon Launcher Grenade Launcher Build | -11 -10 -10 -9 -8 -8 ------- Run | Yrd Mat Min Mat Mat Sto Slots Evolved 4 | . . . 2 2 . Power . | . . . . . . Propulsion 2 | . . . 2 . . Utility 2 | . . . . 2 . Weapon . | . . . . . . Parts Attached 59 | 6 3 4 15 23 8 Power 6 | 1 . 2 1 1 1 Engine 6 | 1 . 2 1 1 1 Core . | . . . . . . Reactor . | . . . . . . Propulsion 22 | 2 . . 8 10 2 Treads 19 | 2 . . 5 10 2 Leg 3 | . . . 3 . . Wheel . | . . . . . . Hover . | . . . . . . Flight . | . . . . . . Utility 12 | 1 1 . 3 5 2 Device 3 | . . . . 2 1 Storage 4 | 1 . . 3 . . Processor 3 | . 1 . . 1 1 Hackware . | . . . . . . Protection 2 | . . . . 2 . Artifact . | . . . . . . Weapon 19 | 2 2 2 3 7 3 Energy Gun 6 | . . 1 1 3 1 Energy Cannon 2 | . . . . 1 1 Ballistic Gun 6 | 2 1 . 2 . 1 Ballistic Cannon 2 | . 1 . . 1 . Launcher 3 | . . 1 . 2 . Special Weapon . | . . . . . . Impact Weapon . | . . . . . . Slashing Weapon . | . . . . . . Piercing Weapon . | . . . . . . Special Melee Weapon . | . . . . . . Unidentified Prototypes 1 | . . . 1 . . Parts Lost 27 | . . 5 2 10 10 Power 4 | . . 2 . 1 1 Propulsion 10 | . . 1 1 4 4 Utility 5 | . . . . 3 2 Weapon 8 | . . 2 1 2 3 Highest Loss Streak 5 | . . 5 1 4 4 To Critical Strikes 1 | . . 1 . . . Average Slot Usage (%) 92 | . 95 96 90 96 81 Engine 11 | . 14 13 11 9 8 Treads 29 | . 28 25 32 34 20 Device 2 | . . . . 6 5 Storage 11 | . 14 14 10 9 9 Processor 12 | . 9 14 11 11 18 Protection 2 | . . . . 6 2 Energy Gun 6 | . . 2 11 8 10 Ballistic Gun 10 | . 27 11 8 2 4 Ballistic Cannon 3 | . . 11 . 2 . Launcher 1 | . . 2 1 . 1 Naked Turns . | . . . . . . Heaviest Build 64 | 13 15 15 54 64 57 Greatest Support 87 | 40 40 40 80 87 80 Greatest Overweight (x) 17 | . . . 2 1 17 Average Overweight (x) . | . . . . . 1 Largest Inventory Capacity 20 | 8 8 8 20 20 20 Average Capacity 14 | 7 8 8 14 20 20 Most Carried 14 | 3 8 8 14 14 12 Average Carried 9 | . 4 7 9 12 10 Final Capacity 20 | 8 8 8 20 20 20 Final Carried 14 | . 8 7 14 11 11 Class Distribution -------------------- 52% | Mutant 47% | Scavenger-Mutant Dominant Class ---------------- Mutant | -10/Materials Mutant | -10/Mines Scavenger-Mutant | -9/Materials Scavenger-Mutant | -8/Materials Scavenger-Mutant | -8/Storage Resources | -11 -10 -10 -9 -8 -8 ----------- Run | Yrd Mat Min Mat Mat Sto Matter Collected 1629 | 260 228 194 375 413 159 Remotely . | . . . . . . Salvage Created 2311 | . 218 134 772 916 271 Parts 165 | . 13 25 58 54 15 Haulers Intercepted . | . . . . . . Recyclers Shooed 1 | . . . . 1 . Parts Field Recycled . | . . . . . . Retrieved Matter . | . . . . . . Parts Self-Destructed . | . . . . . . Prevented . | . . . . . . Kills | -11 -10 -10 -9 -8 -8 ------- Run | Yrd Mat Min Mat Mat Sto Combat Hostiles Destroyed 67 | . 5 15 16 23 8 Guns 38 | . 5 5 16 7 5 Cannons 21 | . . 7 . 13 1 AOE 6 | . . 3 . 1 2 Classes Destroyed 9 | . 4 . 3 2 . Worker 6 | . 2 . 2 2 . Builder 2 | . . . 1 1 . Mechanic 1 | . . . 1 . . Operator 1 | . . . . 1 . Watcher 6 | . 1 . 4 1 . Swarmer 26 | . 2 15 3 3 3 Grunt 28 | . 3 . 9 14 2 Duelist 2 | . . . . 2 . Sentry 11 | . . . 4 4 3 Best Kill Streak 7 | . 5 4 5 7 4 Combat Bots Only 4 | . 3 4 3 4 4 Max Kills in Single Turn 3 | . 2 3 2 1 1 Gunslinging 1 | . . . 1 . . Exploded 3 | . . 3 . 1 1 Melee . | . . . . . . Uniques/NPCs Destroyed . | . . . . . . Combat | -11 -10 -10 -9 -8 -8 -------- Run | Yrd Mat Min Mat Mat Sto Hostile Shots Fired 438 | . 46 74 96 144 78 Missed 110 | . 12 23 26 29 20 Damage Taken 4460 | . 351 434 839 2065 771 Core 861 | . 68 62 171 343 217 Absorbed by Shields . | . . . . . . Regen/Repaired (Parts) 258 | . . . 258 . . Core Remaining (%) 68 | 100 . 48 57 . . Volleys Fired 201 | . 18 24 50 80 29 Largest 2 | . 2 2 2 2 2 Hottest 131 | . 40 65 121 131 128 Shots Fired 376 | . 36 46 99 146 49 Gun 253 | . 36 21 98 54 44 Cannon 112 | . . 23 . 87 2 Launcher 11 | . . 2 1 5 3 Special . | . . . . . . Kinetic 172 | . 36 44 43 41 8 Thermal 193 | . . . 55 100 38 Explosive 11 | . . 2 1 5 3 Electromagnetic . | . . . . . . Robot Hit Streak 9 | . 6 6 9 8 8 Robot Miss Streak 8 | . 4 5 3 8 3 Penetration Max . | . . . . . . Secondary Targets 8 | . 2 . 5 . 1 Max Gunslinging Chain 1 | . 1 . 1 . 1 Shots Hit Robots 252 | . 22 24 67 103 36 Core Hits 150 | . 11 15 36 72 16 Critical Kills . | . . . . . . Critical Parts Destroyed 1 | . . . . . 1 Critical Strikes 7 | . . . 3 3 1 Burn 6 | . . . 3 3 . Destroy 1 | . . . . . 1 Melee Attacks . | . . . . . . Impact . | . . . . . . Slashing . | . . . . . . Piercing . | . . . . . . Sneak Attacks . | . . . . . . Combat Hostiles . | . . . . . . Follow-up Attacks . | . . . . . . Damage Inflicted 4885 | . 311 541 1084 2291 658 Guns 2586 | . 311 155 980 645 495 Cannons 1572 | . . 243 . 1304 25 Explosions 641 | . . 133 62 315 131 Melee . | . . . . . . Ramming 86 | . . 10 42 27 7 Kinetic 1922 | . 311 398 391 758 64 Thermal 2288 | . . . 589 1243 456 Explosive 589 | . . 133 62 263 131 Electromagnetic . | . . . . . . Impact . | . . . . . . Slashing . | . . . . . . Piercing . | . . . . . . Highest Corruption . | . . . . . . Average Corruption . | . . . . . . Corruption Purged . | . . . . . . Corruption Blocked . | . . . . . . Overload Shots . | . . . . . . Overflow Damage 126 | . . 53 . 73 . Projectiles 28 | . . 15 . 13 . Explosions 98 | . . 38 . 60 . Melee . | . . . . . . Knockbacks 13 | . . 5 . 8 . Impact . | . . . . . . Kinetic 10 | . . 3 . 7 . Secondary 3 | . . 2 . 1 . Self-Inflicted Damage 202 | . . 31 . 171 . Shots 4 | . . 1 . 3 . Rammed 12 | . . 3 5 3 1 Targets Rammed 15 | . . 3 8 3 1 Kicked 1 | . . . 1 . . Crushed 2 | . . . 2 . . Highest Temperature 534 | . 8 . 366 504 534 Average Temperature 130 | . 4 . 96 135 193 Received Heat Transfer 1566 | . 111 . 366 882 207 Effects 20 | . . . 2 8 10 Shutdowns 3 | . . . . 2 1 Energy Bleed 3 | . . . 1 2 . Interference 6 | . . . . 2 4 Short Circuit 3 | . . . . 1 2 Damage (minor) 3 | . . . 1 1 1 Damage (major) 1 | . . . . . 1 Damage (core) 1 | . . . . . 1 Siege Activations . | . . . . . . Robots Corrupted . | . . . . . . Combat Hostiles . | . . . . . . Parts Fried . | . . . . . . Impact Corruptions 1 | . . 1 . . . Robots Melted 2 | . . . . 2 . Combat Hostiles 2 | . . . . 2 . Parts Melted 14 | . . . 5 6 3 Heat Transferred 5341 | . . . 1702 2640 999 Parts Sabotaged . | . . . . . . Parts Stolen . | . . . . . . Parts Stripped . | . . . . . . Power Chain Reactions . | . . . . . . Alert | -11 -10 -10 -9 -8 -8 ------- Run | Yrd Mat Min Mat Mat Sto Peak Influence 557 | . 115 248 299 557 450 Initial 235 | . . 44 62 100 235 Average 173 | . 44 152 163 193 354 Maximum Alert Level 2 | . . 1 1 2 2 Low Security (%) 65 | 100 100 83 59 67 . Level 1 28 | . . 16 40 26 63 Level 2 6 | . . . . 5 36 Level 3 . | . . . . . . Level 4 . | . . . . . . Level 5 . | . . . . . . High Security . | . . . . . . Max Security . | . . . . . . Squads Dispatched 11 | . 1 . 3 3 4 Investigation 2 | . . . 2 . . Extermination . | . . . . . . Reinforcement 5 | . 1 . 1 2 1 Assault . | . . . . . . Garrison 4 | . . . . 1 3 Intercept . | . . . . . . Searches Triggered . | . . . . . . Construction Impeded 1 | . . . 1 . . Haulers Reinforced . | . . . . . . Active Scanning Responses . | . . . . . . Cargo Convoy Interrupts . | . . . . . . Stealth | -11 -10 -10 -9 -8 -8 --------- Run | Yrd Mat Min Mat Mat Sto Distress Signals 8 | . . . 3 4 1 Communications Jammed . | . . . . . . Distress Signals . | . . . . . . Times Spotted 100 | . 9 16 22 36 17 Peak Tracking Total 7 | . 3 6 4 7 6 Tactical Retreats 6 | . 1 . 1 3 1 Traps | -11 -10 -10 -9 -8 -8 ------- Run | Yrd Mat Min Mat Mat Sto Traps Triggered . | . . . . . . Indirectly . | . . . . . . Trap Hack Attempts . | . . . . . . Triggered . | . . . . . . Disarmed . | . . . . . . Reprogrammed . | . . . . . . Reused . | . . . . . . Traps Extracted . | . . . . . . Installed . | . . . . . . Triggered . | . . . . . . Machines | -11 -10 -10 -9 -8 -8 ---------- Run | Yrd Mat Min Mat Mat Sto Machines Disabled 8 | . 1 . 1 6 . Max in Single Turn 2 | . 1 . 1 2 . Machines Repaired . | . . . . . . Machines Dismantled . | . . . . . . Machines Sabotaged . | . . . . . . Overloaded Fab Kills . | . . . . . . Hacking | -11 -10 -10 -9 -8 -8 --------- Run | Yrd Mat Min Mat Mat Sto Machines Accessed 18 | . 4 1 7 4 2 Terminals 15 | . 3 1 5 4 2 Fabricators . | . . . . . . Repair Stations 1 | . . . 1 . . Recycling Units 1 | . 1 . . . . Scanalyzers 1 | . . . 1 . . Garrison Access . | . . . . . . Total Hacks 47 | . 9 3 19 12 4 Successful 30 | . 6 2 12 7 3 Failed 17 | . 3 1 7 5 1 Catastrophic 1 | . 1 . . . . Database Lockouts . | . . . . . . Manual 14 | . 1 2 7 2 2 Terminals 41 | . 8 3 14 12 4 Fabricators . | . . . . . . Repair Stations 3 | . . . 3 . . Recycling Units 1 | . 1 . . . . Scanalyzers 2 | . . . 2 . . Garrison Access . | . . . . . . Terminal Hacks 25 | . 5 2 8 7 3 Record 3 | . 1 . . 2 . Prototype ID Bank 2 | . 1 . 1 . . Level Access Points 1 | . . 1 . . . Alert Level 5 | . . . 4 . 1 Locate Traps 4 | . . . 2 1 1 Hauler Manifests 1 | . . . . 1 . Zone Layout 9 | . 3 1 1 3 1 Fabricator Hacks . | . . . . . . Repair Station Hacks 2 | . . . 2 . . Scan Component 1 | . . . 1 . . Repair 1 | . . . 1 . . Recycling Unit Hacks 1 | . 1 . . . . Report Inventory 1 | . 1 . . . . Scanalyzer 2 | . . . 2 . . Insert Component 1 | . . . 1 . . Analyze 1 | . . . 1 . . Garrison Access Hacks . | . . . . . . Unauthorized Hacks . | . . . . . . Terminals . | . . . . . . Fabricators . | . . . . . . Repair Stations . | . . . . . . Recycling Units . | . . . . . . Scanalyzers . | . . . . . . Garrison Access . | . . . . . . Data Cores Recovered . | . . . . . . Used . | . . . . . . Hacking Detections 13 | . 2 . 6 3 2 Full Trace Events 2 | . . . 2 . . Feedback Events . | . . . . . . Feedback Blocked . | . . . . . . Robot Schematics Acquired . | . . . . . . Robots Built . | . . . . . . Authchips . | . . . . . . Time . | . . . . . . Total Robot Build Rating . | . . . . . . Part Schematics Acquired 1 | . . . 1 . . Parts Built . | . . . . . . Authchips . | . . . . . . Time . | . . . . . . Total Part Build Rating . | . . . . . . Parts Repaired 1 | . . . 1 . . Time 26 | . . . 26 . . Parts Recycled . | . . . . . . Recycled Matter . | . . . . . . Retrieved Matter . | . . . . . . Retrieved Components . | . . . . . . Parts Scanalyzed 1 | . . . 1 . . Part Schematics Acquired 1 | . . . 1 . . Parts Damaged . | . . . . . . Bothacking | -11 -10 -10 -9 -8 -8 ------------ Run | Yrd Mat Min Mat Mat Sto Used RIF Installer . | . . . . . . Robots Hacked . | . . . . . . Non-combat . | . . . . . . Combat . | . . . . . . Robot Hacks Applied . | . . . . . . Relay Couplers Released . | . . . . . . Fabnet Peak Effective % . | . . . . . . Robots Rewired . | . . . . . . Allies Hacked . | . . . . . . Hacks Repelled . | . . . . . . Allies | -11 -10 -10 -9 -8 -8 -------- Run | Yrd Mat Min Mat Mat Sto Total Allies 3 | . . 3 . . . Largest Group 2 | . . 2 2 . . Highest-Rated Group 41 | . . 41 41 . . Highest-Rated Ally 31 | . . 31 31 . . Total Orders . | . . . . . . Ally Attacks 5 | . . 3 2 . . Total Damage 104 | . . 62 42 . . Kills . | . . . . . . Allies Corrupted . | . . . . . . Allies Melted . | . . . . . . Intel | -11 -10 -10 -9 -8 -8 ------- Run | Yrd Mat Min Mat Mat Sto Robot Analysis Total . | . . . . . . Derelict Logs Recovered 1 | . . 1 . . . Drone Launches . | . . . . . . Drone Recoveries . | . . . . . . Exploration | -11 -10 -10 -9 -8 -8 ------------- Run | Yrd Mat Min Mat Mat Sto Turns Passed 4219 | 65 683 731 1028 1151 561 Spaces Moved 1748 | 40 381 354 454 341 178 Core 23 | 10 . . . . 13 Treads 1707 | 30 381 354 436 341 165 Legs 18 | . . . 18 . . Wheels . | . . . . . . Hover . | . . . . . . Flight . | . . . . . . Fastest Speed 50 | 50 160 160 120 152 160 Average Speed 169 | 132 160 160 163 159 251 Slowest Speed 900 | 160 160 160 260 240 900 Overloaded Moves . | . . . . . . Propulsion Burnouts . | . . . . . . Robots Hopped . | . . . . . . Cave-ins Triggered . | . . . . . . Exploration Rate (%) 38 | 3 49 68 32 40 36 Regions Visited 5 Branch Regions 2 Pre-discovered Areas 1 | . . 1 . . . Known Exits Taken 1 | . . 1 . . . Unknown Exits Taken 4 | 1 1 . 1 1 . Scrap Searched . | . . . . . . Spaces Dug . | . . . . . . Terrain Destroyed 138 | . . 15 11 82 30 Melee . | . . . . . . Projectile 1 | . . . . . 1 AOE 137 | . . 15 11 82 29 Terrain Rammed . | . . . . . . Walls Destroyed . | . . . . . . Machines Disabled . | . . . . . . Actions | -11 -10 -10 -9 -8 -8 --------- Run | Yrd Mat Min Mat Mat Sto Total 2629 | 53 418 471 641 799 247 Wait 514 | . 8 84 71 333 18 Move 1743 | 39 380 353 453 340 178 Hop . | . . . . . . Pick Up 74 | 7 9 3 32 15 8 Fast Attach . | . . . . . . Attach 34 | 6 1 4 6 13 4 Detach . | . . . . . . Swap 25 | . 2 . 9 10 4 Drop 23 | 1 . . 12 5 5 Fire 201 | . 18 24 50 80 29 Melee . | . . . . . . Ram . | . . . . . . Kick 1 | . . . 1 . . Crush 14 | . . 3 7 3 1 Escape Stasis . | . . . . . . Rewire . | . . . . . . Trap . | . . . . . . Miscellaneous . | . . . . . . Route ------- -11/Scrapyard -10/Materials (discovered 2 exits: Mat / *Min) -10/Mines (discovered 2 exits: *Mat x2) -9/Materials -8/Materials -8/Storage History --------- Turn | Location | Event 9 | -11/Scrapyard | Discovered new exit (range 16) 66 | -11/Scrapyard | Entered Materials 303 | -10/Materials | Build established: Mutant 364 | -10/Materials | Discovered new exit (range 14) 621 | -10/Materials | Discovered new exit (range 12) 749 | -10/Materials | Entered Mines 762 | -10/Mines | Identified exit to Materials 770 | -10/Mines | Met a Derelict bent on vengeance 1015 | -10/Mines | Learned location of Zion (-6) 1365 | -10/Mines | Escorted by a lone wolf Derelict 1365 | -10/Mines | Core integrity fell below 50% 1394 | -10/Mines | Lost 5 parts (2p1n2w) 1480 | -10/Mines | Entered Materials 1480 | -9/Materials | Accompanied by 2 allies 1480 | -9/Materials | Evolved 2 slots: Propulsion x2 1927 | -9/Materials | Repaired Lrg. Storage Unit 1991 | -9/Materials | Build established: Scavenger-Mutant 2464 | -9/Materials | Discovered new exit (range 18) 2508 | -9/Materials | Entered another Materials area 2508 | -8/Materials | Evolved 2 slots: Utility x2 3212 | -8/Materials | Build established: Mutant 3223 | -8/Materials | Garrison activated, responded to threat 3303 | -8/Materials | Lost 4 parts (2n1u1w) 3556 | -8/Materials | Lost 3 parts (1p2n) 3580 | -8/Materials | Core integrity fell below 50% 3588 | -8/Materials | Build established: Scavenger-Mutant 3622 | -8/Materials | Discovered new exit (range 17) 3659 | -8/Materials | Entered Storage 3854 | -8/Storage | Garrison activated, responded to threat 3863 | -8/Storage | Core integrity fell below 20% 3893 | -8/Storage | Lost 4 parts (2n1u1w) 4220 | -8/Storage | Destroyed by G-47 Trooper with Particle Gun Last Messages --------------- Dropped Signal Interpreter. Acquired Imp. Signal Interpreter. Connecting with Terminal... >>Traps(Locate) No traps found in local area. Lgt. Treads destroyed. Y-45 Defender destroyed. Acquired 16 matter. Dropped Broken Lgt. Treads. Acquired Hvy. Assault Rifle. O-16 Technician: "IFF HANDSHAKE FAILED. SECURING TERMINAL." ALERT: Hostiles spotted, dispatching reinforcements to Terminal S004. Field Laser destroyed. Imp. Heat Sink destroyed. G-47 Trooper suffers critical hit (Destroy). Destroyed Lgt. Nuclear Core. Lgt. Assault Rifle destroyed. Imp. Ion Engine destroyed. Map ----- +----------------------------------------------------+ | | | | | | | | | | | | | ?????????????????????????????????????????????? | | ?????????????????????????????????????????????? | | ?????????????????????????????????????????????? | | ?????????????????????????????????????????????? | | ?????????????????????????????????????????????? | | ?????????????????????????????????????????????? | | ?????????????????????????????????????????????? | | ???????????????# ????????????????????????????? | | ???????????????# ????????????????????????????? | | ???????????????# ???????????????????????????? | | ???????????????# ???????????????????????????? | | ?????????????### ??????????????????????????? | | ?????????????? ??????????????????????????? | | ??# "??????????# #????????????????????????? | | ??? ""?????????# #####????????????????????? | | ????"""????????# /????????????????????? | | ????? ???????# #????????????????????? | | #######+######## g#+#??????????????????? | | a #??????????????????? | | #+##/## ####???# @#??????????????????? | | ! /# T ##%##### Y########???????????? | | = + #!* = + g +?????????? | | / [# # """ #### ##### #?????????? | | # !!! # """ #??# #??????????????????? | | ####### !! + """ #??# #??????????????????? | | ??????# !! # #??# #??????????????????? | | ??????# # #??# #??????????????????? | | ??????# ##+##+##??#Y#??????????????????? | | ?????# ???????# #??????????????????? | | ?????# ???????#Y#??????????????????? | | ?????# #### ??????? ???????????????????? | | ?????#####??#+## ?????? ???????????????????? | | ???????????????? ????? ???????????????????? | | ????????????????? ????? ???????????????????? | | ?????????????????####????u???????????????????? | | #???????????????????? ???????????????????? | | #????????????????????k???????????????????? | | #???????????????????? ???????????????????? | | ###??????????????????????????????????????????? | | ?????????????????????????????????????????????? | | ?????????????????????????????????????????????? | | ?????????????????????????????????????????????? | | ?????????????????????????????????????????????? | | ?????????????????????????????????????????????? | +----------------------------------------------------+ Best States ------------- Heat Dissipation 45 Energy Generation 14 Energy Capacity 280 Matter Stores 300 Matter Capacity 300 Sight Range 18 Robot Scan Range 14 Terrain Scan Density 10 Armor Coverage 150 Evasion (%) 50 Targeting Accuracy 8 Recoil Reduction 4 Item Schematics ----------------- Lgt. Treads | -9/Materials | Scanalyzed Robot Schematics ------------------ None Fabricated ------------ Nothing Alien Tech Used ----------------- None Achievements -------------- None Challenges ------------ None Game ------ Seed GreatGhostWarhead Manual? 0 Play Time 00:43:16 Cumulative 15.0 hours Start 2024.06.05 @ 17:10:16 End 2024.06.05 @ 17:52:04 Sessions 1 Manual Loads 0 Difficulty Rogue Special Mode None Game No. 26 Rogue 26 Adventurer 0 Explorer 0 Win Type - Total 0 Types 0/0/0/0/0/0/0/0/0 Lore% 8 Gallery% 19 Achievement% 14 Wizard Run 0 Options --------- Layout 1 ASCII 0 Keyboard 0 Movement Mouse Keybinds 0 Fullscreen 1 Font 24/Smallcaps Map View 50x35 Zoom Use 0% Tactical HUD 0 Map Filters NONE Filters NONE Steam 1 RUN: d3bccbc1-fdca-4d5b-98ae-f71299a73f6b